[Event "FIDE U16 Olympiad_boards_81-124"]
[Site "Eindhoven, Netherlands"]
[Date "2023.08.14"]
[Round "3.24"]
[White "Nabirye, Caroline"]
[Black "Bootsumran, Sirin"]
[Result "0-1"]
[TimeControl "45min+10sec"]
[WhiteElo "1287"]
[BlackElo "1265"]

1. e4 {[%clk 00:45:18]} {[%emt 00:00:02]} c5 {[%clk 00:45:12]} {[%emt
00:00:09]} 2. Bc4 {[%clk 00:45:23]} {[%emt 00:00:05]} e6 {[%clk 00:45:21]}
{[%emt 00:00:01]} 3. Nf3 {[%clk 00:45:29]} {[%emt 00:00:04]} d5 {[%clk
00:45:20]} {[%emt 00:00:11]} 4. exd5 {[%clk 00:45:24]} {[%emt 00:00:15]} exd5
{[%clk 00:45:28]} {[%emt 00:00:02]} 5. Be2 {[%clk 00:45:24]} {[%emt 00:00:11]}
Nf6 {[%clk 00:45:31]} {[%emt 00:00:07]} 6. d4 {[%clk 00:45:30]} {[%emt
00:00:03]} Be6 {[%clk 00:45:20]} {[%emt 00:00:21]} 7. Nc3 {[%clk 00:44:39]}
{[%emt 00:01:01]} Nc6 {[%clk 00:43:11]} {[%emt 00:02:19]} 8. Be3 {[%clk
00:43:41]} {[%emt 00:01:08]} c4 {[%clk 00:42:33]} {[%emt 00:00:48]} 9. O-O
{[%clk 00:43:34]} {[%emt 00:00:17]} Bd6 {[%clk 00:41:26]} {[%emt 00:01:17]} 10.
h3 {[%clk 00:42:45]} {[%emt 00:01:00]} O-O {[%clk 00:39:49]} {[%emt 00:01:46]}
11. Nh2 {[%clk 00:41:58]} {[%emt 00:00:58]} Bxh2+ {[%clk 00:32:33]} {[%emt
00:07:25]} 12. Kxh2 {[%clk 00:42:03]} {[%emt 00:00:04]} Qd6+ {[%clk 00:32:42]}
{[%emt 00:00:02]} 13. Kg1 {[%clk 00:41:05]} {[%emt 00:01:08]} Qb4 {[%clk
00:30:21]} {[%emt 00:02:31]} 14. Rb1 {[%clk 00:38:55]} {[%emt 00:02:20]} Bf5
{[%clk 00:27:53]} {[%emt 00:02:38]} 15. a3 {[%clk 00:33:34]} {[%emt 00:05:31]}
Qe7 {[%clk 00:26:39]} {[%emt 00:01:24]} 16. Bg5 {[%clk 00:32:45]} {[%emt
00:00:58]} Rad8 {[%clk 00:26:18]} {[%emt 00:00:31]} 17. Bf3 {[%clk 00:29:26]}
{[%emt 00:03:30]} Be6 {[%clk 00:23:52]} {[%emt 00:02:35]} 18. Re1 {[%clk
00:29:11]} {[%emt 00:00:26]} h6 {[%clk 00:22:09]} {[%emt 00:01:53]} 19. Bh4
{[%clk 00:28:53]} {[%emt 00:00:28]} Qd7 {[%clk 00:19:05]} {[%emt 00:03:14]} 20.
Bxf6 {[%clk 00:28:44]} {[%emt 00:00:19]} gxf6 {[%clk 00:19:14]} {[%emt
00:00:02]} 21. Ne2 {[%clk 00:27:42]} {[%emt 00:01:12]} Kh7 {[%clk 00:15:32]}
{[%emt 00:03:51]} 22. Ng3 {[%clk 00:22:41]} {[%emt 00:05:11]} Rg8 {[%clk
00:12:45]} {[%emt 00:02:57]} 23. Qd2 {[%clk 00:18:17]} {[%emt 00:04:34]} Qd6
{[%clk 00:05:51]} {[%emt 00:07:04]} 24. c3 {[%clk 00:14:58]} {[%emt 00:03:29]}
Rg6 {[%clk 00:05:29]} {[%emt 00:00:32]} 25. Bh5 {[%clk 00:10:27]} {[%emt
00:04:41]} Rg7 {[%clk 00:05:06]} {[%emt 00:00:33]} 26. Qe3 {[%clk 00:07:38]}
{[%emt 00:02:59]} Rdg8 {[%clk 00:04:22]} {[%emt 00:00:54]} 27. Bg4 {[%clk
00:04:23]} {[%emt 00:03:25]} Bxg4 {[%clk 00:03:31]} {[%emt 00:01:01]} 28. hxg4
{[%clk 00:04:31]} {[%emt 00:00:02]} Rxg4 {[%clk 00:03:01]} {[%emt 00:00:40]} 29.
Nf5 {[%clk 00:04:10]} {[%emt 00:00:31]} Rxg2+ {[%clk 00:03:09]} {[%emt
00:00:02]} 30. Kf1 {[%clk 00:04:17]} {[%emt 00:00:03]} Qh2 {[%clk 00:03:05]}
{[%emt 00:00:15]} 31. Ke2 {[%clk 00:03:10]} {[%emt 00:01:16]} Qh5+ {[%clk
00:02:45]} {[%emt 00:00:31]} 32. Qf3 {[%clk 00:03:04]} {[%emt 00:00:15]} Qxf3+
{[%clk 00:01:01]} {[%emt 00:01:54]} 33. Kxf3 {[%clk 00:03:11]} {[%emt
00:00:03]} R2g5 {[%clk 00:00:22]} {[%emt 00:00:50]} 34. Ne3 {[%clk 00:03:04]}
{[%emt 00:00:16]} h5 {[%clk 00:00:21]} {[%emt 00:00:12]} 35. Rh1 {[%clk
00:03:04]} {[%emt 00:00:09]} Kg7 {[%clk 00:00:26]} {[%emt 00:00:05]} 36. Rbe1
{[%clk 00:02:51]} {[%emt 00:00:24]} Nd8 {[%clk 00:00:26]} {[%emt 00:00:09]} 37.
Rhg1 {[%clk 00:02:44]} {[%emt 00:00:17]} Kf8 {[%clk 00:00:35]} {[%emt
00:00:02]} 38. Rh1 {[%clk 00:02:50]} {[%emt 00:00:04]} Ne6 {[%clk 00:00:44]} 39.
Rh4 {[%clk 00:02:32]} {[%emt 00:00:27]} Ke7 {[%clk 00:00:40]} {[%emt 00:00:13]}
40. Reh1 {[%clk 00:02:38]} {[%emt 00:00:04]} Rh8 {[%clk 00:00:37]} {[%emt
00:00:14]} 41. R1h2 {[%clk 00:02:38]} {[%emt 00:00:10]} Nf8 {[%clk 00:00:43]}
{[%emt 00:00:04]} 42. Rg2 {[%clk 00:02:40]} {[%emt 00:00:08]} Ng6 {[%clk
00:00:49]} {[%emt 00:00:04]} 43. Rhh2 {[%clk 00:02:42]} {[%emt 00:00:08]} Ke6
{[%clk 00:00:36]} {[%emt 00:00:24]} 44. Nc2 {[%clk 00:02:32]} {[%emt 00:00:19]}
h4 {[%clk 00:00:44]} {[%emt 00:00:02]} 45. Ne3 {[%clk 00:02:35]} {[%emt
00:00:07]} h3 {[%clk 00:00:35]} {[%emt 00:00:19]} 46. Rxg5 {[%clk 00:02:42]}
{[%emt 00:00:03]} fxg5 {[%clk 00:00:44]} {[%emt 00:00:01]} 47. Kg4 {[%clk
00:02:50]} Ne7 {[%clk 00:00:31]} {[%emt 00:00:24]} 48. Kxg5 {[%clk 00:02:34]}
{[%emt 00:00:27]} f5 {[%clk 00:00:25]} {[%emt 00:00:16]} 49. Kf4 {[%clk
00:02:26]} {[%emt 00:00:18]} Ng6+ {[%clk 00:00:28]} {[%emt 00:00:07]} 50. Kg3
{[%clk 00:02:29]} {[%emt 00:00:05]} f4+ {[%clk 00:00:37]} {[%emt 00:00:03]} 51.
Kf3 {[%clk 00:02:30]} {[%emt 00:00:08]} fxe3 {[%clk 00:00:45]} {[%emt
00:00:02]} 52. fxe3 {[%clk 00:02:37]} {[%emt 00:00:03]} Kf5 {[%clk 00:00:54]}
{[%emt 00:00:02]} 53. a4 {[%clk 00:02:36]} {[%emt 00:00:10]} Nh4+ {[%clk
00:00:59]} {[%emt 00:00:06]} 54. Kg3 {[%clk 00:02:32]} {[%emt 00:00:14]} Ke4
{[%clk 00:01:02]} {[%emt 00:00:06]} 55. Rxh3 {[%clk 00:02:28]} {[%emt
00:00:14]} Nf5+ {[%clk 00:01:11]} 56. Kg4 {[%clk 00:02:33]} {[%emt 00:00:04]}
Rxh3 {[%clk 00:01:16]} {[%emt 00:00:05]} 57. Kxh3 {[%clk 00:02:41]} {[%emt
00:00:02]} Nxe3 {[%clk 00:01:25]} {[%emt 00:00:02]} 58. Kg3 {[%clk 00:02:43]}
{[%emt 00:00:08]} Nd1 {[%clk 00:01:33]} {[%emt 00:00:02]} 59. Kf2 {[%clk
00:02:46]} {[%emt 00:00:07]} Nxb2 {[%clk 00:01:41]} {[%emt 00:00:02]} 60. a5
{[%clk 00:02:53]} {[%emt 00:00:03]} Nd1+ {[%clk 00:01:45]} {[%emt 00:00:06]} 61.
Ke2 {[%clk 00:03:01]} {[%emt 00:00:02]} Nxc3+ {[%clk 00:01:50]} {[%emt
00:00:06]} 62. Kd2 {[%clk 00:03:10]} Nb5 {[%clk 00:01:58]} {[%emt 00:00:02]} 63.
Kc2 {[%emt 00:00:06]} Kxd4 {[%clk 00:01:59]} {[%emt 00:00:06]} 64. Kd2 {[%clk
00:03:22]} {[%emt 00:00:05]} c3+ {[%clk 00:02:07]} {[%emt 00:00:03]} 65. Kc2
{[%clk 00:03:31]} Na3+ {[%clk 00:02:14]} {[%emt 00:00:02]} 66. Kc1 {[%clk
00:03:36]} {[%emt 00:00:04]} Kd3 {[%clk 00:02:05]} {[%emt 00:00:19]} 67. Kd1
{[%clk 00:03:36]} {[%emt 00:00:11]} Nc2 {[%clk 00:02:06]} {[%emt 00:00:09]} 68.
Kc1 {[%clk 00:03:38]} {[%emt 00:00:08]} Nd4 {[%clk 00:02:13]} {[%emt 00:00:03]}
69. a6 {[%clk 00:03:36]} {[%emt 00:00:13]} Ne2+ {[%clk 00:02:14]} {[%emt
00:00:09]} 70. Kb1 {[%clk 00:03:42]} {[%emt 00:00:03]} c2+ {[%clk 00:02:23]}
{[%emt 00:00:02]} 71. Ka2 {[%clk 00:03:45]} {[%emt 00:00:06]} b6 {[%clk
00:02:01]} {[%emt 00:00:32]} 72. Kb3 {[%clk 00:03:51]} {[%emt 00:00:04]} c1=Q
{[%clk 00:02:08]} {[%emt 00:00:04]} 73. Ka2 {[%clk 00:03:57]} {[%emt 00:00:02]}
Qc4+ {[%clk 00:02:13]} {[%emt 00:00:06]} 74. Kb2 {[%clk 00:04:02]} {[%emt
00:00:05]} Qb4+ {[%clk 00:02:09]} {[%emt 00:00:15]} 75. Ka2 {[%clk 00:04:06]}
{[%emt 00:00:05]} Nc3+ {[%clk 00:02:17]} {[%emt 00:00:02]} 76. Ka1 {[%clk
00:04:12]} {[%emt 00:00:03]} Qb1# {[%clk 00:02:26]} {[%emt 00:00:03]} 0-1

[Event "FIDE U16 Olympiad_boards_81-124"]
[Site "Eindhoven, Netherlands"]
[Date "2023.08.14"]
[Round "3.25"]
[White "Olando, Paul Jnr"]
[Black "Tandeka, Shiloh"]
[Result "1/2-1/2"]
[TimeControl "45min+10sec"]
[WhiteElo "1381"]
[BlackElo "1433"]

1. d4 {[%clk 00:45:04]} {[%emt 00:00:16]} d5 {[%clk 00:45:20]} 2. Nf3 {[%clk
00:45:09]} {[%emt 00:00:04]} Nf6 {[%clk 00:45:29]} {[%emt 00:00:01]} 3. e3
{[%clk 00:45:14]} {[%emt 00:00:05]} c5 {[%clk 00:45:34]} {[%emt 00:00:05]} 4.
b3 {[%clk 00:45:19]} {[%emt 00:00:05]} Bf5 {[%clk 00:45:32]} {[%emt 00:00:11]}
5. Bb2 {[%clk 00:44:50]} {[%emt 00:00:39]} e6 {[%clk 00:45:35]} {[%emt
00:00:07]} 6. Bd3 {[%clk 00:44:44]} {[%emt 00:00:17]} Bxd3 {[%clk 00:45:23]}
{[%emt 00:00:22]} 7. Qxd3 {[%clk 00:44:52]} {[%emt 00:00:02]} Nc6 {[%clk
00:45:22]} {[%emt 00:00:11]} 8. a3 {[%clk 00:44:55]} {[%emt 00:00:07]} Be7
{[%clk 00:45:14]} {[%emt 00:00:17]} 9. Nbd2 {[%clk 00:45:03]} {[%emt 00:00:03]}
Qc7 {[%clk 00:45:12]} {[%emt 00:00:12]} 10. O-O {[%clk 00:45:08]} {[%emt
00:00:05]} cxd4 {[%clk 00:44:50]} {[%emt 00:00:32]} 11. exd4 {[%clk 00:45:11]}
{[%emt 00:00:06]} O-O {[%clk 00:44:50]} {[%emt 00:00:10]} 12. Ne5 {[%clk
00:44:19]} {[%emt 00:01:03]} Rac8 {[%clk 00:38:57]} {[%emt 00:06:02]} 13. Rac1
{[%clk 00:38:00]} {[%emt 00:06:29]} Nxe5 {[%clk 00:38:31]} {[%emt 00:00:37]} 14.
dxe5 {[%clk 00:38:02]} {[%emt 00:00:07]} Nd7 {[%clk 00:38:34]} {[%emt
00:00:07]} 15. f4 {[%clk 00:37:50]} {[%emt 00:00:23]} Rfd8 {[%emt 00:04:53]} 16.
b4 {[%clk 00:34:44]} {[%emt 00:02:41]} a5 {[%clk 00:33:29]} {[%emt 00:01:07]}
17. c3 {[%clk 00:32:16]} {[%emt 00:02:39]} Nb6 {[%clk 00:33:06]} {[%emt
00:00:32]} 18. Rf3 {[%clk 00:28:31]} {[%emt 00:03:53]} Nc4 {[%clk 00:32:17]}
{[%emt 00:00:59]} 19. Rh3 {[%clk 00:27:21]} {[%emt 00:01:21]} g6 {[%clk
00:31:51]} {[%emt 00:00:35]} 20. Rc2 {[%clk 00:24:31]} {[%emt 00:03:02]} b5
{[%clk 00:26:49]} {[%emt 00:05:11]} 21. Bc1 {[%clk 00:17:02]} {[%emt 00:07:40]}
Nxd2 {[%clk 00:17:59]} {[%emt 00:09:00]} 22. Qxd2 {[%clk 00:14:58]} {[%emt
00:02:13]} axb4 {[%clk 00:17:29]} {[%emt 00:00:40]} 23. axb4 {[%clk 00:13:34]}
{[%emt 00:01:34]} Bxb4 {[%clk 00:17:12]} {[%emt 00:00:27]} 24. Qf2 {[%clk
00:11:54]} {[%emt 00:01:50]} Be7 {[%clk 00:15:31]} {[%emt 00:01:51]} 25. Re2
{[%clk 00:07:14]} {[%emt 00:04:49]} d4 {[%clk 00:13:31]} {[%emt 00:02:12]} 26.
Bd2 {[%clk 00:04:41]} {[%emt 00:02:43]} d3 {[%clk 00:11:03]} {[%emt 00:02:37]}
27. Ree3 {[%clk 00:02:27]} {[%emt 00:02:25]} Bc5 {[%clk 00:10:41]} {[%emt
00:00:31]} 28. Qh4 {[%clk 00:02:35]} {[%emt 00:00:03]} f5 {[%clk 00:08:51]}
{[%emt 00:01:59]} 29. exf6 {[%clk 00:02:38]} {[%emt 00:00:07]} Qf7 {[%clk
00:08:29]} {[%emt 00:00:33]} 30. Kf1 {[%clk 00:01:37]} {[%emt 00:01:11]} Bxe3
{[%clk 00:08:36]} {[%emt 00:00:03]} 31. Rxe3 {[%clk 00:01:45]} {[%emt
00:00:01]} Rd5 {[%clk 00:07:35]} {[%emt 00:01:11]} 32. g4 {[%clk 00:00:59]}
{[%emt 00:00:56]} Rc4 {[%clk 00:06:32]} {[%emt 00:01:13]} 33. g5 {[%clk
00:00:54]} {[%emt 00:00:16]} e5 {[%clk 00:05:47]} {[%emt 00:00:55]} 34. Qh3
{[%clk 00:00:15]} {[%emt 00:00:47]} Rxf4+ {[%clk 00:05:17]} {[%emt 00:00:42]}
35. Ke1 {[%clk 00:00:12]} {[%emt 00:00:13]} e4 {[%clk 00:03:37]} {[%emt
00:01:50]} 36. Qc8+ {[%clk 00:00:19]} {[%emt 00:00:02]} Qf8 {[%clk 00:03:47]}
37. Qe6+ {[%clk 00:00:28]} Qf7 {[%clk 00:03:10]} {[%emt 00:00:47]} 38. Qc8+
{[%clk 00:00:37]} {[%emt 00:00:01]} Qf8 {[%clk 00:00:42]} {[%emt 00:02:38]} 39.
Qe6+ {[%clk 00:00:19]} {[%emt 00:00:28]} Qf7 {[%clk 00:00:18]} {[%emt
00:00:34]} 40. Qc8+ {[%clk 00:00:23]} {[%emt 00:00:05]} Qf8 {[%clk 00:00:26]}
{[%emt 00:00:02]} 41. Qe6+ {[%clk 00:00:30]} {[%emt 00:00:11]} 1/2-1/2

[Event "FIDE U16 Olympiad_boards_81-124"]
[Site "Eindhoven, Netherlands"]
[Date "2023.08.14"]
[Round "3.26"]
[White "Kigundu, Ethan"]
[Black "Kaloki, Hawi"]
[Result "1-0"]
[TimeControl "45min+10sec"]
[WhiteElo "1620"]
[BlackElo "1351"]

1. d4 {[%clk 00:45:17]} {[%emt 00:00:03]} d5 {[%clk 00:45:18]} {[%emt
00:00:02]} 2. Bf4 {[%clk 00:45:25]} {[%emt 00:00:02]} c5 {[%clk 00:45:26]}
{[%emt 00:00:02]} 3. e3 {[%clk 00:45:32]} {[%emt 00:00:03]} Nc6 {[%clk
00:45:33]} {[%emt 00:00:02]} 4. c3 {[%clk 00:45:39]} {[%emt 00:00:03]} Bf5
{[%clk 00:45:40]} {[%emt 00:00:04]} 5. Nd2 {[%clk 00:45:47]} {[%emt 00:00:03]}
e6 {[%clk 00:45:44]} {[%emt 00:00:05]} 6. Ngf3 {[%clk 00:45:08]} {[%emt
00:00:48]} Bd6 {[%clk 00:41:09]} {[%emt 00:04:45]} 7. Bg3 {[%clk 00:45:09]}
{[%emt 00:00:10]} Nge7 {[%clk 00:41:01]} {[%emt 00:00:18]} 8. Be2 {[%clk
00:42:59]} {[%emt 00:02:20]} O-O {[%clk 00:40:59]} {[%emt 00:00:11]} 9. Nh4
{[%clk 00:39:08]} {[%emt 00:04:00]} Bg6 {[%clk 00:39:45]} {[%emt 00:01:26]} 10.
Nxg6 {[%clk 00:39:07]} {[%emt 00:00:12]} Nxg6 {[%clk 00:39:43]} {[%emt
00:00:11]} 11. Nf3 {[%clk 00:38:39]} {[%emt 00:00:38]} Rc8 {[%clk 00:34:31]}
{[%emt 00:05:21]} 12. O-O {[%clk 00:37:23]} {[%emt 00:01:27]} b6 {[%clk
00:29:57]} {[%emt 00:04:43]} 13. Bd3 {[%clk 00:35:15]} {[%emt 00:02:18]} Bxg3
{[%clk 00:23:29]} {[%emt 00:06:39]} 14. hxg3 {[%clk 00:35:18]} {[%emt
00:00:07]} Qd6 {[%clk 00:23:30]} {[%emt 00:00:08]} 15. Qd2 {[%clk 00:30:52]}
{[%emt 00:04:37]} Rcd8 {[%clk 00:21:13]} {[%emt 00:02:26]} 16. Rad1 {[%clk
00:30:08]} {[%emt 00:00:55]} Qc7 {[%clk 00:20:19]} {[%emt 00:01:04]} 17. Bb5
{[%clk 00:23:42]} {[%emt 00:06:36]} Rfe8 {[%clk 00:20:22]} {[%emt 00:00:07]} 18.
Rfe1 {[%clk 00:20:52]} {[%emt 00:03:00]} a6 {[%clk 00:15:10]} {[%emt 00:05:21]}
19. Bd3 {[%clk 00:14:46]} {[%emt 00:06:16]} e5 {[%clk 00:14:23]} {[%emt
00:00:58]} 20. dxe5 {[%clk 00:13:13]} {[%emt 00:01:43]} b5 {[%clk 00:10:13]}
{[%emt 00:04:20]} 21. Bxg6 {[%clk 00:07:38]} {[%emt 00:05:45]} hxg6 {[%clk
00:10:18]} {[%emt 00:00:05]} 22. Qc2 {[%clk 00:06:17]} {[%emt 00:01:31]} Nxe5
{[%clk 00:09:42]} {[%emt 00:00:46]} 23. Nxe5 {[%clk 00:05:58]} {[%emt
00:00:28]} Qxe5 {[%clk 00:09:43]} {[%emt 00:00:09]} 24. Rd3 {[%clk 00:03:57]}
{[%emt 00:02:12]} Rd6 {[%clk 00:05:48]} {[%emt 00:04:05]} 25. Qd2 {[%clk
00:03:36]} {[%emt 00:00:30]} Red8 {[%clk 00:04:32]} {[%emt 00:01:26]} 26. Rd1
{[%clk 00:03:22]} {[%emt 00:00:25]} f5 {[%clk 00:03:38]} {[%emt 00:01:04]} 27.
Qe2 {[%clk 00:01:22]} {[%emt 00:02:11]} d4 {[%clk 00:01:22]} {[%emt 00:02:26]}
28. cxd4 {[%clk 00:01:17]} {[%emt 00:00:14]} Rxd4 {[%clk 00:01:28]} {[%emt
00:00:03]} 29. Rxd4 {[%clk 00:01:13]} {[%emt 00:00:15]} Rxd4 {[%clk 00:01:35]}
{[%emt 00:00:03]} 30. Rxd4 {[%clk 00:01:18]} {[%emt 00:00:05]} cxd4 {[%clk
00:01:43]} {[%emt 00:00:02]} 31. f4 {[%clk 00:00:18]} {[%emt 00:01:10]} Qe4
{[%clk 00:01:20]} {[%emt 00:00:32]} 32. Kf2 {[%clk 00:00:26]} {[%emt 00:00:03]}
d3 {[%clk 00:01:15]} {[%emt 00:00:14]} 33. Qd2 {[%clk 00:00:32]} {[%emt
00:00:05]} Qc4 {[%clk 00:00:26]} {[%emt 00:00:59]} 34. b3 {[%clk 00:00:18]}
{[%emt 00:00:25]} Qc2 {[%clk 00:00:14]} {[%emt 00:00:21]} 35. Ke1 {[%clk
00:00:25]} {[%emt 00:00:03]} 1-0

[Event "FIDE U16 Olympiad_boards_81-124"]
[Site "Eindhoven, Netherlands"]
[Date "2023.08.14"]
[Round "3.27"]
[White "Kuka, Kyle"]
[Black "Mwase, Mathew"]
[Result "0-1"]
[TimeControl "45min+10sec"]
[WhiteElo "1187"]
[BlackElo "1478"]

1. e4 {[%clk 00:45:18]} {[%emt 00:00:01]} c5 {[%clk 00:45:19]} {[%emt
00:00:02]} 2. c3 {[%clk 00:45:25]} {[%emt 00:00:02]} e6 {[%clk 00:45:27]}
{[%emt 00:00:02]} 3. d4 {[%clk 00:45:33]} {[%emt 00:00:03]} Nf6 {[%clk
00:45:19]} {[%emt 00:00:17]} 4. Bd3 {[%clk 00:45:39]} {[%emt 00:00:04]} Nc6
{[%clk 00:45:15]} {[%emt 00:00:15]} 5. Nf3 {[%clk 00:45:45]} {[%emt 00:00:03]}
cxd4 {[%clk 00:45:13]} {[%emt 00:00:12]} 6. cxd4 {[%clk 00:45:52]} {[%emt
00:00:03]} d6 {[%clk 00:45:15]} {[%emt 00:00:08]} 7. Nc3 {[%clk 00:45:56]}
{[%emt 00:00:05]} Be7 {[%clk 00:45:09]} {[%emt 00:00:16]} 8. O-O {[%clk
00:46:02]} {[%emt 00:00:05]} O-O {[%clk 00:45:00]} {[%emt 00:00:19]} 9. Be3
{[%clk 00:45:50]} {[%emt 00:00:22]} e5 {[%clk 00:43:46]} {[%emt 00:01:24]} 10.
h3 {[%clk 00:45:33]} {[%emt 00:00:26]} Re8 {[%clk 00:40:47]} {[%emt 00:03:10]}
11. Rc1 {[%clk 00:45:08]} {[%emt 00:00:34]} a6 {[%clk 00:38:03]} {[%emt
00:02:55]} 12. Re1 {[%clk 00:44:42]} {[%emt 00:00:36]} Bf8 {[%clk 00:35:16]}
{[%emt 00:02:58]} 13. Qb3 {[%clk 00:40:04]} {[%emt 00:04:47]} h6 {[%clk
00:27:55]} {[%emt 00:07:31]} 14. d5 {[%clk 00:31:48]} {[%emt 00:08:26]} Na5
{[%clk 00:21:07]} {[%emt 00:06:59]} 15. Qa3 {[%clk 00:31:27]} {[%emt 00:00:29]}
b6 {[%clk 00:19:59]} {[%emt 00:01:20]} 16. Na4 {[%clk 00:29:37]} {[%emt
00:01:59]} Rb8 {[%clk 00:16:06]} {[%emt 00:04:04]} 17. Nxb6 {[%clk 00:28:30]}
{[%emt 00:01:16]} Rxb6 {[%clk 00:14:33]} {[%emt 00:01:43]} 18. Rxc8 {[%clk
00:28:06]} {[%emt 00:00:34]} Qxc8 {[%clk 00:14:24]} {[%emt 00:00:20]} 19. Bxb6
{[%clk 00:28:11]} {[%emt 00:00:04]} Nc4 {[%clk 00:14:06]} {[%emt 00:00:27]} 20.
Bxc4 {[%clk 00:27:48]} {[%emt 00:00:33]} Qxc4 {[%clk 00:14:05]} {[%emt
00:00:12]} 21. Nd2 {[%clk 00:26:11]} {[%emt 00:01:46]} Qb5 {[%clk 00:13:49]}
{[%emt 00:00:27]} 22. Ba5 {[%clk 00:24:10]} {[%emt 00:02:11]} Rc8 {[%clk
00:12:31]} {[%emt 00:01:28]} 23. Bc3 {[%clk 00:24:00]} {[%emt 00:00:19]} Nh5
{[%clk 00:12:04]} {[%emt 00:00:38]} 24. g3 {[%clk 00:23:38]} {[%emt 00:00:32]}
Kh7 {[%clk 00:07:25]} {[%emt 00:04:49]} 25. Nb3 {[%clk 00:20:46]} {[%emt
00:03:02]} Nf6 {[%clk 00:02:53]} {[%emt 00:04:43]} 26. Na5 {[%clk 00:18:55]}
{[%emt 00:02:00]} Qb6 {[%clk 00:01:36]} {[%emt 00:01:27]} 27. Kg2 {[%clk
00:18:04]} {[%emt 00:01:00]} Nd7 {[%clk 00:01:17]} {[%emt 00:00:29]} 28. f4
{[%clk 00:17:08]} {[%emt 00:01:07]} Nc5 {[%clk 00:01:05]} {[%emt 00:00:22]} 29.
Re2 {[%clk 00:14:24]} {[%emt 00:02:52]} Qb5 {[%clk 00:00:52]} {[%emt 00:00:25]}
30. Re3 {[%clk 00:12:53]} {[%emt 00:01:41]} exf4 {[%clk 00:00:22]} {[%emt
00:00:41]} 31. gxf4 {[%clk 00:12:47]} {[%emt 00:00:15]} Nxe4 {[%clk 00:00:21]}
{[%emt 00:00:11]} 32. Rxe4 {[%clk 00:12:17]} {[%emt 00:00:39]} Qxd5 {[%clk
00:00:30]} {[%emt 00:00:02]} 33. Qb3 {[%clk 00:11:32]} {[%emt 00:00:55]} Qxe4+
{[%clk 00:00:33]} {[%emt 00:00:06]} 34. Kf2 {[%clk 00:11:35]} {[%emt 00:00:05]}
Qxf4+ {[%clk 00:00:42]} {[%emt 00:00:04]} 35. Ke2 {[%clk 00:11:43]} {[%emt
00:00:02]} Re8+ {[%clk 00:00:34]} {[%emt 00:00:18]} 36. Kd3 {[%clk 00:11:45]}
{[%emt 00:00:07]} Qe4+ {[%clk 00:00:30]} {[%emt 00:00:16]} 37. Kd2 {[%clk
00:11:44]} {[%emt 00:00:09]} Qe2+ {[%clk 00:00:24]} {[%emt 00:00:17]} 38. Kc1
{[%clk 00:11:43]} {[%emt 00:00:06]} Qf1+ {[%clk 00:00:28]} {[%emt 00:00:11]} 39.
Qd1 {[%clk 00:11:48]} {[%emt 00:00:05]} Qxh3 {[%clk 00:00:28]} {[%emt
00:00:10]} 40. Nc4 {[%clk 00:11:13]} {[%emt 00:00:43]} Qe6 {[%clk 00:00:21]}
{[%emt 00:00:18]} 41. Nd2 {[%clk 00:10:48]} {[%emt 00:00:35]} Qxa2 {[%clk
00:00:19]} {[%emt 00:00:13]} 42. b3 {[%clk 00:10:07]} {[%emt 00:00:51]} Rc8
{[%clk 00:00:22]} {[%emt 00:00:08]} 43. Nb1 {[%clk 00:09:45]} {[%emt 00:00:31]}
d5 {[%clk 00:00:21]} {[%emt 00:00:10]} 44. Qf3 {[%clk 00:07:41]} {[%emt
00:02:13]} Ba3+ {[%clk 00:00:27]} {[%emt 00:00:06]} 45. Nxa3 {[%clk 00:07:47]}
{[%emt 00:00:03]} Qxa3+ {[%clk 00:00:22]} {[%emt 00:00:15]} 46. Kd2 {[%clk
00:07:49]} {[%emt 00:00:03]} Rc7 {[%clk 00:00:29]} {[%emt 00:00:09]} 47. Qxd5
{[%clk 00:06:38]} {[%emt 00:01:21]} Qa2+ {[%clk 00:00:24]} {[%emt 00:00:16]} 48.
Kd3 {[%clk 00:06:30]} {[%emt 00:00:17]} Qb1+ {[%clk 00:00:21]} {[%emt
00:00:13]} 49. Kd2 {[%clk 00:06:34]} {[%emt 00:00:04]} Qg6 {[%clk 00:00:17]}
{[%emt 00:00:15]} 50. Qd4 {[%clk 00:05:52]} {[%emt 00:00:52]} f6 {[%clk
00:00:16]} {[%emt 00:00:11]} 51. Qb4 {[%clk 00:03:14]} {[%emt 00:02:48]} Rd7+
{[%clk 00:00:20]} {[%emt 00:00:07]} 52. Kc1 {[%clk 00:03:20]} {[%emt 00:00:04]}
Qd3 {[%clk 00:00:23]} {[%emt 00:00:07]} 53. Kb2 {[%clk 00:03:19]} {[%emt
00:00:11]} Rc7 {[%clk 00:00:28]} {[%emt 00:00:05]} 54. Be1 {[%clk 00:02:50]}
{[%emt 00:00:36]} Qc2+ {[%clk 00:00:24]} {[%emt 00:00:17]} 55. Ka3 {[%clk
00:02:42]} {[%emt 00:00:17]} Qc5 {[%clk 00:00:32]} {[%emt 00:00:02]} 56. Ka4
{[%clk 00:02:32]} {[%emt 00:00:19]} Qxb4+ {[%clk 00:00:37]} {[%emt 00:00:07]}
57. Bxb4 {[%clk 00:02:36]} {[%emt 00:00:05]} Rb7 {[%clk 00:00:45]} {[%emt
00:00:03]} 58. Bc3 {[%clk 00:02:39]} {[%emt 00:00:05]} Rb5 {[%clk 00:00:53]}
{[%emt 00:00:04]} 59. b4 {[%clk 00:02:39]} {[%emt 00:00:09]} h5 {[%clk
00:00:59]} {[%emt 00:00:05]} 60. Be1 {[%clk 00:02:17]} {[%emt 00:00:32]} g5
{[%clk 00:01:05]} {[%emt 00:00:04]} 61. Bc3 {[%clk 00:02:21]} {[%emt 00:00:05]}
f5 {[%clk 00:01:09]} {[%emt 00:00:07]} 0-1